{"text_format":"1","workbook":"xlsx","n_sheets":3,"sheets":["【調査票 08】母子生活（世）","data","02【調査票 08】母子生活（世）(2)"],"not_rendered":{"charts":0,"images":1,"macros":1,"external_links":0,"defined_names":2,"comments":0,"pivot_tables":0},"unopened":[],"bounds":{"document_bytes":16777216,"sheet_cells":100000,"rows_first":2000,"rows_last":500,"rows_between":2000,"halvings":0,"cell_chars":16384,"cell_head_chars":4096},"cells_cut":0,"cells_raw":0,"read":"whole","date_system":"1900"}

{"sheet":"【調査票 08】母子生活（世）","index":0,"n_rows":77,"n_cols":88,"rows_kept":77,"cut":false,"hidden":false,"merged":[[75,1,78,12],[52,1,56,12],[51,1,51,12],[57,1,57,12],[59,1,63,12],[64,1,73,12],[74,1,74,12],[19,82,20,85],[54,74,54,86],[71,68,71,81],[76,20,77,27],[76,28,77,31],[0,1,0,91],[4,1,4,91],[5,1,5,91],[1,0,2,16],[8,1,10,9],[8,10,10,15],[8,16,10,19],[8,20,10,23],[8,24,10,27],[8,28,10,33],[8,34,10,38],[8,39,10,42],[8,68,10,74],[9,77,9,89],[14,1,17,12],[15,47,16,47],[32,43,36,53],[37,13,50,21],[38,1,49,12],[37,46,50,52],[14,37,17,42],[22,1,26,12],[32,1,36,12],[27,1,31,12],[18,1,21,12],[12,77,12,89],[15,17,16,20],[15,48,16,55],[15,62,16,65],[37,68,50,74],[15,21,16,22],[15,58,16,58],[15,59,16,59],[15,66,16,67],[15,56,16,57],[19,88,20,89],[19,79,20,80],[19,86,20,87],[18,62,21,67],[19,70,20,70],[19,71,20,78]]}
[null,"令和４年度児童養護施設入所児童等調査"]
[]
[]
[]
[null,"母子生活支援施設票（世帯用） "]
[null,"（令和５年２月１日現在）"]
[null,"　　　　　　　　　　　　　　　　　　　　　　　　　　　　　　　　　　　　　　　"]
[]
[null,"都道府県\n指定都市\n中核市\n児童相談所設置市\n（番号）",null,null,null,null,null,null,null,null,null,null,null,null,null,null,"施設\n\n番号",null,null,null,null,null,null,null,"世帯\n\n番号",null,null,null,null,null,null,null,null,null,"調査票\n\n種別",null,null,null,null,"８",null,null,null,null,null,null,null,null,null,null,null,null,null,null,null,null,null,null,null,null,null,null,null,null,null,null,null,null,"都道府県\n指定都市\n中 核 市\n児童相談所設置市\n（名称）"]
[]
[]
[]
[null,null,null,null,null,null,null,null,null,null,null,null,null,null,null,null,null,null,null,null,null,null,null,null,null,null,null,null,null,null,null,null,null,null,null,null,null,null,null,null,null,null,null,null,null,null,null,null,null,null,null,null,null,null,null,null,null,null,null,null,null,null,null,null,null,null,null,null,"施設の名称"]
[]
[null,"(1)\n児童数",null,null,null,null,null,null,null,null,null,null,null,null,null,null,null,null,null,null,null,null,null,null,null,null,null,null,null,null,null,null,null,null,null,null,null,"(2)\n母親の\n出生年月"]
[null,null,null,null,null,null,null,null,null,null,null,null,null,null,null,null,null,null,null,null,null,"人",null,null,null,null,null,null,null,null,null,null,null,null,null,null,null,null,null,null,null,null,null,null,null,null,null,"西暦",null,null,null,null,null,null,null,null,"年",null,null,null,null,null,null,null,null,null,"月"]
[]
[]
[null,"(3)\n課税状況",null,null,null,null,null,null,null,null,null,null,null,null,null,null,null,null,null,null,null,null,null,null,null,null,null,null,null,null,null,null,null,null,null,null,null,null,null,null,null,null,null,null,null,null,null,null,null,null,null,null,null,null,null,null,null,null,null,null,null,null,"(4)\n入所年月"]
[null,null,null,null,null,null,null,null,null,null,null,null,null,null,null,null,null,null,null,null,null,null,null,null,null,null,null,null,null,null,null,null,null,null,null,null,null,null,null,null,null,null,null,null,null,null,null,null,null,null,null,null,null,null,null,null,null,null,null,null,null,null,null,null,null,null,null,null,null,null,"西暦",null,null,null,null,null,null,null,null,"年",null,null,null,null,null,null,"月"]
[]
[]
[null,"(5)\n入所理由"]
[]
[null,null,null,null,null,null,null,null,null,null,null,null,null,null,null,null,"　　　　　　　　　　　　　　　　　　　　　　　　　　　　　　　　 　　　　　　　　　　　　　　　　"]
[]
[]
[null,"(6)\n母子世帯に\nなった理由"]
[null,null,null,null,null,null,null,null,null,null,null,null,null,null,null,null,"死別 ( ",null,null,null,null,null,null,null,null,null,null,null,null,null,null,null,null,null,null,null,null,null,null,null,null,null,")"]
[null,null,null,null,null,null,null,null,null,null,null,null,null,null,null,null,"　　　　　　　　　　　　　　　　　　　　　　　　　　　　　"]
[]
[]
[null,"(7)\n母の傷病状況",null,null,null,null,null,null,null,null,null,null,null,null,null,null,"傷病あり",null,null,null,null,null,null,null,null,null,null,null,null,null,null,null,null,null,null,null,null,null,null,null,null,null,null,"(7) の補問"]
[]
[]
[]
[]
[null,null,null,null,null,null,null,null,null,null,null,null,null,"(ｱ)\n何によって\n制度を\n知ったか",null,null,null,null,null,null,null,null,null,null,null,null,null,null,null,null,null,null,null,null,null,null,null,null,null,null,null,null,null,null,null,null,"(ｲ)\n受給状況",null,null,null,null,null,null,null,null,null,null,null,null,null,null,null,null,null,null,null,null,null,"(ｳ)\n 主な使途"]
[null,"(8)\n児童扶養手当",null,null,null,null,null,null,null,null,null,null,null,null,null,null,null,null,null,null,null,null,null,null,"知っている"]
[]
[null,null,null,null,null,null,null,null,null,null,null,null,null,null,null,null,null,null,null,null,null,null,null,null,null,null,null,null,null,null,null,null,null,null,null,null,null,null,null,null,null,null,null,null,null,null,null,null,null,null,null,null,null,null,null,null,null,null,null,null,null,null,null,null,null,null,null,null,null,null,null,null,null,null,null,"　 　"]
[]
[null,null,null,null,null,null,null,null,null,null,null,null,null,null,null,null,null,null,null,null,null,null,null,null,null,null,null,null,null,null,null,null,null,null,null,null,null,null,null,null,null,null,null,null,null,null,null,null,null,null,null,null,null,null,"受給していない",null,null,null,null,null,null,null,null,null,null,null,null,null,null,null,null,null,null,null,null,"　 　"]
[]
[null,null,null,null,null,null,null,null,null,null,null,null,null,null,null,null,null,null,null,null,null,null,null,null,null,null,null,null,null,null,null,null,null,null,null,null,null,null,null,null,null,null,null,null,null,null,null,null,null,null,null,null,null,null,null,null,null,null,null,null,null,null,null,null,null,null,null,null,null,null,null,null,null,null,null,"　 　"]
[]
[null,null,null,null,null,null,null,null,null,null,null,null,null,null,null,null,null,null,null,null,null,null,null,null,null,null,null,null,null,null,null,null,null,null,null,null,null,null,null,null,null,null,null,null,null,null,null,null,null,null,null,null,null,null,null,null,null,null,null,null,null,null,null,null,null,null,null,null,null,null,null,null,null,null,null,"　 　"]
[]
[null,null,null,null,null,null,null,null,null,null,null,null,null,null,null,null,null,null,null,null,null,null,null,null,null,null,null,null,null,null,null,null,null,null,null,null,null,null,null,null,null,null,null,null,null,null,null,null,null,null,null,null,null,null,null,null,null,null,null,null,null,null,null,null,null,null,null,null,null,null,null,null,null,null,null,"　 　"]
[]
[]
[null,"(9)\n公営住宅入居希望の有無"]
[null,"(10)\n現在の状況"]
[]
[null,null,null,null,null,null,null,null,null,null,null,null,null,null,null,null,null,null,null,null,null,null,null,null,null,null,null,null,null,null,null,null,null,null,null,null,null,null,null,null,null,null,null,null,null,null,null,null,null,null,null,null,null,null,null,null,null,null,null,null,null,null,null,null,null,null,null,null,null,null,null,null,null,null,null,null,null,null,null,null,null,null,null,null,null,null,null,")"]
[]
[]
[null,"(11)\n従業上の地位"]
[]
[null,"(11)\n従業上の地位｢5 不就業｣の補問"]
[]
[]
[]
[]
[null,"(12)\n仕事の種類\n※以下,(12),(13)については、就業している方のみ記入してください。"]
[]
[]
[]
[]
[]
[]
[null,null,null,null,null,null,null,null,null,null,null,null,null,null,null,null,null,null,null,null,null,null,null,null,null,null,null,null,null,null,null,null,null,null,null,null,null,null,null,null,null,null,null,null,null,null,null,null,null,null,null,null,null,null,null,null,null,null,null,null,null,null,null,null,null,null,null,null,null,null,null,null,null,null,null,null,null,null,null,null,null,null,")"]
[]
[]
[null,"(13)\n転職希望の有無"]
[null,"(14)\n年間所得"]
[null,null,null,null,null,null,null,null,null,null,null,null,null,null,null,null,null,null,"",null,null,null,null,null,null,null,null,null,"万円"]

{"sheet":"data","index":1,"n_rows":5,"n_cols":29,"rows_kept":5,"cut":false,"hidden":true,"merged":[[1,0,3,0],[1,1,1,6],[2,1,3,1],[2,2,3,2],[2,3,3,3],[2,4,3,4],[2,5,3,5],[2,6,3,6],[2,7,3,7],[1,8,1,9],[2,8,2,9],[2,10,3,10],[1,11,1,12],[2,11,2,12],[2,24,3,24],[1,23,1,24],[2,13,3,13],[2,14,3,14],[1,15,1,16],[2,15,3,15],[2,16,3,16],[1,17,1,19],[2,17,2,19],[2,20,3,20],[2,21,3,21],[1,21,1,22],[2,22,3,22],[2,23,3,23],[2,25,3,25],[1,25,1,26],[2,26,3,26],[2,27,3,27],[2,28,3,28]]}
[]
["項目","KEY番号",null,null,null,null,null,"質問１","質問２",null,"質問３","質問２",null,"質問５","質問６","質問７",null,"質問８",null,null,"質問９","質問１０",null,"質問１１",null,"質問12",null,"質問13","質問14"]
[null,"都道府県・指定都市・中核市・児童相談所設置市番号","施設番号","児童番号","調査票種別","自治体名","施設名","児童数","母親出生年月",null,"課税状況","入所年月",null,"入所理由","母子世帯になった理由","母の傷病状況","補問","扶養手当",null,null,"公営住宅入居希望の有無","現在の状況","その他フリーワード","従業上の地位","補問","仕事の種類","その他フリーワード","転職希望の有無","年間所得"]
[null,null,null,null,null,null,null,null,"年","月",null,"年","月",null,null,null,null,"(ｱ)","(ｲ)","(ｳ)"]
["回答",{"$f":"'【調査票 08】母子生活（世）'!$K$9","v":0},{"$f":"'【調査票 08】母子生活（世）'!$U$9","v":0},{"$f":"'【調査票 08】母子生活（世）'!$AC$9","v":0},{"$f":"'【調査票 08】母子生活（世）'!$AN$9","v":"８"},{"$f":"'【調査票 08】母子生活（世）'!$BZ$10","v":0},{"$f":"'【調査票 08】母子生活（世）'!$BZ$13","v":0},{"$f":"'【調査票 08】母子生活（世）'!$R$16","v":0},{"$f":"'【調査票 08】母子生活（世）'!$AW$16","v":0},{"$f":"'【調査票 08】母子生活（世）'!$BK$16","v":0},{"$f":"'【調査票 08】母子生活（世）'!$S$20","v":0},{"$f":"'【調査票 08】母子生活（世）'!$BT$20","v":0},{"$f":"'【調査票 08】母子生活（世）'!$CE$20","v":0},{"$f":"'【調査票 08】母子生活（世）'!$S$24","v":0},{"$f":"'【調査票 08】母子生活（世）'!$S$30","v":0},{"$f":"'【調査票 08】母子生活（世）'!$U$34","v":0},{"$f":"'【調査票 08】母子生活（世）'!$BL$34","v":0},{"$f":"'【調査票 08】母子生活（世）'!$AB$40","v":0},{"$f":"'【調査票 08】母子生活（世）'!$BD$40","v":0},{"$f":"'【調査票 08】母子生活（世）'!$BZ$40","v":0},{"$f":"'【調査票 08】母子生活（世）'!$S$52","v":0},{"$f":"'【調査票 08】母子生活（世）'!$S$55","v":0},{"$f":"'【調査票 08】母子生活（世）'!$BW$55","v":0},{"$f":"'【調査票 08】母子生活（世）'!$S$58","v":0},{"$f":"'【調査票 08】母子生活（世）'!$S$60","v":0},{"$f":"'【調査票 08】母子生活（世）'!$S$67","v":0},{"$f":"'【調査票 08】母子生活（世）'!$BQ$72","v":0},{"$f":"'【調査票 08】母子生活（世）'!$S$75","v":0},{"$f":"'【調査票 08】母子生活（世）'!$U$77","v":0}]

{"sheet":"02【調査票 08】母子生活（世）(2)","index":2,"n_rows":27,"n_cols":29,"rows_kept":27,"cut":false,"hidden":true,"merged":[[26,28,27,31],[14,1,23,15],[24,1,24,15],[2,1,2,15],[4,1,6,15],[8,1,8,15],[9,1,13,15],[26,20,27,21],[26,22,27,23],[25,1,28,15],[26,24,27,25],[26,26,27,27]]}
[]
[]
[null,"(9)\n公営住宅入居希望の有無",null,null,null,null,null,null,null,null,null,null,null,null,null,null,null,null,"1 有　　　 2 無　　　 3 分からない"]
[]
[null,"(10)\n現在の状況",null,null,null,null,null,null,null,null,null,null,null,null,null,null,null,null,"　 ３か月以内に　　　 １年以内に　　 　　適当な住宅さえ　　　　 末子が年齢制限に"]
[null,null,null,null,null,null,null,null,null,null,null,null,null,null,null,null,null,null,"1　　　　　　　　　2　　　　　　　　　3　　　　　　　　 　 　4　　　　　　　　　　　　 5　その他（　　　　　 ）"]
[null,null,null,null,null,null,null,null,null,null,null,null,null,null,null,null,null,null,"　 退所の見込み　 　　退所の見込み　　　 あれば退所できる　　　 達するまで退所困難"]
[]
[null,"(11)\n従業上の地位",null,null,null,null,null,null,null,null,null,null,null,null,null,null,null,null,"1 事業主　　2　常用勤労者　　3　臨時・日雇・パート　　4　その他就業　　5　不就業　　6　不明"]
[null,"(11)\n従業上の地位｢5 不就業｣の補問",null,null,null,null,null,null,null,null,null,null,null,null,null,null,null,null,"1 技術を身につけるため講習・学校等に通って就業準備中　　　　　　　2 保育が確保できない"]
[null,null,null,null,null,null,null,null,null,null,null,null,null,null,null,null,null,null,"3 乳児がいるので就業したくない　　　4 条件にあった求人がない　　　5 就労習慣が身に付いていない"]
[null,null,null,null,null,null,null,null,null,null,null,null,null,null,null,null,null,null,"6 就労意欲に乏しい　　　　　　　　　7 疾病がある、もしくは虚弱である"]
[null,null,null,null,null,null,null,null,null,null,null,null,null,null,null,null,null,null,"8 精神的・身体的障害がある　　　　　9 児童に障害・疾病があり、介護しなければならない"]
[]
[null,"(12)\n仕事の種類\n※以下,(12),(13)については、就業している方のみ記入してください。"]
[null,null,null,null,null,null,null,null,null,null,null,null,null,null,null,null,null,null,"　　専門的・技術的"]
[null,null,null,null,null,null,null,null,null,null,null,null,null,null,null,null,null,null,"01　　　　　　　 　02 管理的職業従事者　03 事務従事者　04 販売従事者　05 農林・漁業作業者　06 運輸・通信従事者"]
[null,null,null,null,null,null,null,null,null,null,null,null,null,null,null,null,null,null,"　　職業従事者"]
[]
[]
[null,null,null,null,null,null,null,null,null,null,null,null,null,null,null,null,null,null,"　　技能工・生産工程作業者"]
[null,null,null,null,null,null,null,null,null,null,null,null,null,null,null,null,null,null,"07　　　　　　　　　　　 　08 保安職業従事者　09 ｻｰﾋﾞｽ業従事者　10 その他の就業者（　　　　　　　　　　　）"]
[null,null,null,null,null,null,null,null,null,null,null,null,null,null,null,null,null,null,"　　及び労務作業者"]
[]
[null,"(13)\n転職希望の有無",null,null,null,null,null,null,null,null,null,null,null,null,null,null,null,null,"1 有　    　 2 無　　     3 分からない"]
[null,"(14)\n年間所得"]
[null,null,null,null,null,null,null,null,null,null,null,null,null,null,null,null,null,null,null,null,null,null,null,null,null,null,null,null,"万円"]